[Event "Early-Titled-Tuesday-Blitz-February-06-2024"]
[Site "Chess.com"]
[Date "2024.02.06"]
[Round "5"]
[White "BashirliSaadat"]
[Black "lluiss"]
[Result "1/2-1/2"]
[WhiteElo "2333"]
[BlackElo "2141"]
[TimeControl "180+1"]
[EndTime "8:56:01 PST"]
[Termination "Game drawn by repetition"]

1. d4 {[%clk 0:02:55.7]} 1... d5 {[%clk 0:02:58.4]} 2. e3 {[%clk 0:02:55.3]}
2... c6 {[%clk 0:02:57.5]} 3. f4 {[%clk 0:02:53.9]} 3... e6 {[%clk 0:02:56.9]}
4. Nf3 {[%clk 0:02:54.2]} 4... f5 {[%clk 0:02:57.2]} 5. Bd3 {[%clk 0:02:54.2]}
5... Nf6 {[%clk 0:02:57]} 6. Ne5 {[%clk 0:02:54.1]} 6... Be7 {[%clk 0:02:52.4]}
7. O-O {[%clk 0:02:53.1]} 7... O-O {[%clk 0:02:51.1]} 8. c3 {[%clk 0:02:53.2]}
8... Bd7 {[%clk 0:02:50.6]} 9. Nd2 {[%clk 0:02:53.2]} 9... Be8 {[%clk
0:02:50.3]} 10. Ndf3 {[%clk 0:02:51.6]} 10... Bh5 {[%clk 0:02:49.8]} 11. Qe1
{[%clk 0:02:48.7]} 11... Bxf3 {[%clk 0:02:49.6]} 12. Rxf3 {[%clk 0:02:46.4]}
12... Nbd7 {[%clk 0:02:50.1]} 13. Bd2 {[%clk 0:02:45.8]} 13... Nxe5 {[%clk
0:02:49.6]} 14. fxe5 {[%clk 0:02:45.6]} 14... Ne4 {[%clk 0:02:50.5]} 15. Rf1
{[%clk 0:02:43.8]} 15... Bh4 {[%clk 0:02:45.2]} 16. Qe2 {[%clk 0:02:39.6]} 16...
Qg5 {[%clk 0:02:31.6]} 17. Bxe4 {[%clk 0:02:36.8]} 17... fxe4 {[%clk 0:02:30.8]}
18. Rxf8+ {[%clk 0:02:35.3]} 18... Rxf8 {[%clk 0:02:29.6]} 19. Rf1 {[%clk
0:02:35.9]} 19... Rxf1+ {[%clk 0:02:26.4]} 20. Qxf1 {[%clk 0:02:36.3]} 20... Qh5
{[%clk 0:02:15]} 21. g3 {[%clk 0:02:31]} 21... Bg5 {[%clk 0:02:06.2]} 22. Kg2
{[%clk 0:02:28.3]} 22... Qg6 {[%clk 0:01:55.6]} 23. Qf2 {[%clk 0:02:26.6]} 23...
h5 {[%clk 0:01:55.4]} 24. h3 {[%clk 0:02:25]} 24... Be7 {[%clk 0:01:32.2]} 25.
Kh2 {[%clk 0:02:24]} 25... Qh6 {[%clk 0:01:27]} 26. b3 {[%clk 0:02:21.7]} 26...
g5 {[%clk 0:01:25.9]} 27. c4 {[%clk 0:02:18.9]} 27... g4 {[%clk 0:01:25.1]} 28.
h4 {[%clk 0:02:18.2]} 28... Qf8 {[%clk 0:01:25.1]} 29. Qxf8+ {[%clk 0:02:11]}
29... Bxf8 {[%clk 0:01:21.5]} 30. Ba5 {[%clk 0:02:08.6]} 30... Kf7 {[%clk
0:01:14.7]} 31. Kg2 {[%clk 0:02:07.5]} 31... Ba3 {[%clk 0:01:14.5]} 32. Kf2
{[%clk 0:02:05.1]} 32... b6 {[%clk 0:01:14.7]} 33. Bc3 {[%clk 0:02:02.5]} 33...
Bc1 {[%clk 0:01:11.4]} 34. Ke2 {[%clk 0:02:01.5]} 34... Ba3 {[%clk 0:01:10.6]}
35. Kd2 {[%clk 0:01:32.8]} 35... Ke8 {[%clk 0:01:09.5]} 36. Kc2 {[%clk
0:01:30.7]} 36... Kd7 {[%clk 0:01:09]} 37. Bd2 {[%clk 0:01:22.6]} 37... Be7
{[%clk 0:01:03.9]} 38. Be1 {[%clk 0:01:21.8]} 38... Kc7 {[%clk 0:01:01.8]} 39.
Kb2 {[%clk 0:01:18.2]} 39... Kb7 {[%clk 0:01:01.9]} 40. a3 {[%clk 0:01:17.9]}
40... Ka6 {[%clk 0:01:00.8]} 41. a4 {[%clk 0:01:09.7]} 41... Kb7 {[%clk
0:00:58.6]} 42. Kc3 {[%clk 0:01:07.7]} 42... a5 {[%clk 0:00:56.8]} 43. Kc2
{[%clk 0:01:04.8]} 43... Ka6 {[%clk 0:00:53.7]} 44. Kb2 {[%clk 0:01:00.2]} 44...
Bf8 {[%clk 0:00:49.8]} 45. Kc2 {[%clk 0:00:57.4]} 45... Bh6 {[%clk 0:00:49.2]}
46. Bf2 {[%clk 0:00:51.6]} 46... Kb7 {[%clk 0:00:47.5]} 47. Kc3 {[%clk
0:00:50.8]} 47... Bf8 {[%clk 0:00:46.6]} 48. Kc2 {[%clk 0:00:49.7]} 48... Bb4
{[%clk 0:00:46.7]} 49. Kd1 {[%clk 0:00:43.8]} 49... Kc7 {[%clk 0:00:44.8]} 50.
Kc2 {[%clk 0:00:42.9]} 50... Kd7 {[%clk 0:00:44.6]} 51. Kd1 {[%clk 0:00:42.5]}
51... c5 {[%clk 0:00:39]} 52. Kc2 {[%clk 0:00:39.3]} 52... cxd4 {[%clk
0:00:37.5]} 53. exd4 {[%clk 0:00:38.1]} 53... Kc6 {[%clk 0:00:34.2]} 54. Be3
{[%clk 0:00:34.1]} 54... Be7 {[%clk 0:00:31.4]} 55. Bf4 {[%clk 0:00:32.1]} 55...
Bb4 {[%clk 0:00:26]} 56. Bd2 {[%clk 0:00:26.7]} 56... Be7 {[%clk 0:00:19.7]} 57.
Bf4 {[%clk 0:00:24.3]} 57... Bb4 {[%clk 0:00:18.9]} 58. Bd2 {[%clk 0:00:23.7]}
58... Be7 {[%clk 0:00:18.7]} 59. Bf4 {[%clk 0:00:23.4]} 1/2-1/2

[Event "Early-Titled-Tuesday-Blitz-February-06-2024"]
[Site "Chess.com"]
[Date "2024.02.06"]
[Round "5"]
[White "Alexander_Donchenko"]
[Black "banhgiahuy2606"]
[Result "0-1"]
[WhiteElo "2910"]
[BlackElo "2692"]
[TimeControl "180+1"]
[EndTime "8:56:03 PST"]
[Termination "banhgiahuy2606 won by resignation"]

1. c4 {[%clk 0:03:00.9]} 1... Nf6 {[%clk 0:02:57.8]} 2. Nc3 {[%clk 0:03:00.3]}
2... d6 {[%clk 0:02:58]} 3. d4 {[%clk 0:02:58.8]} 3... g6 {[%clk 0:02:58.7]} 4.
e4 {[%clk 0:02:57.9]} 4... Bg7 {[%clk 0:02:59.2]} 5. Nf3 {[%clk 0:02:58.2]} 5...
O-O {[%clk 0:02:58.9]} 6. Be2 {[%clk 0:02:58.8]} 6... Nbd7 {[%clk 0:02:59.2]} 7.
O-O {[%clk 0:02:58.4]} 7... e5 {[%clk 0:02:59.8]} 8. Be3 {[%clk 0:02:58.8]} 8...
Qe7 {[%clk 0:02:58.3]} 9. Qc2 {[%clk 0:02:58.9]} 9... c6 {[%clk 0:02:55.9]} 10.
d5 {[%clk 0:02:59.1]} 10... c5 {[%clk 0:02:56.2]} 11. Rae1 {[%clk 0:02:58.7]}
11... Kh8 {[%clk 0:02:53.7]} 12. h3 {[%clk 0:02:56.8]} 12... Nh5 {[%clk
0:02:49.9]} 13. Bg5 {[%clk 0:02:56.1]} 13... f6 {[%clk 0:02:47.4]} 14. Bd2
{[%clk 0:02:55.3]} 14... Nf4 {[%clk 0:02:47.7]} 15. Kh2 {[%clk 0:02:48.5]} 15...
Nxe2 {[%clk 0:02:47.1]} 16. Rxe2 {[%clk 0:02:47.8]} 16... f5 {[%clk 0:02:47.7]}
17. exf5 {[%clk 0:02:31.2]} 17... gxf5 {[%clk 0:02:46]} 18. Ng5 {[%clk
0:02:21.5]} 18... Nf6 {[%clk 0:02:42.3]} 19. Qc1 {[%clk 0:02:08.1]} 19... Bd7
{[%clk 0:02:35.6]} 20. Rd1 {[%clk 0:02:01.4]} 20... Rae8 {[%clk 0:02:33.5]} 21.
b3 {[%clk 0:01:57.2]} 21... Rg8 {[%clk 0:02:32.9]} 22. f3 {[%clk 0:01:55.4]}
22... Bh6 {[%clk 0:02:31.5]} 23. Ne6 {[%clk 0:01:35]} 23... Bxd2 {[%clk
0:02:22.6]} 24. Qxd2 {[%clk 0:01:35.9]} 24... Nh5 {[%clk 0:02:17.6]} 25. Rg1
{[%clk 0:01:26.8]} 25... Qh4 {[%clk 0:02:00.3]} 26. Qe1 {[%clk 0:01:19.1]} 26...
Rg3 {[%clk 0:01:53.8]} 27. Rd2 {[%clk 0:00:55.4]} 27... Reg8 {[%clk 0:01:44.8]}
28. Kh1 {[%clk 0:00:38.6]} 28... Bxe6 {[%clk 0:01:10.8]} 29. dxe6 {[%clk
0:00:39.5]} 29... Nf4 {[%clk 0:01:11]} 30. Qf1 {[%clk 0:00:13.3]} 30... Nxh3
{[%clk 0:00:52.5]} 31. gxh3 {[%clk 0:00:13.4]} 31... Rxg1+ {[%clk 0:00:52.3]}
32. Qxg1 {[%clk 0:00:13.6]} 32... Qxh3+ {[%clk 0:00:47.3]} 33. Rh2 {[%clk
0:00:13.7]} 33... Qxf3+ {[%clk 0:00:42.8]} 34. Rg2 {[%clk 0:00:13.9]} 34... Qh5+
{[%clk 0:00:37.7]} 35. Rh2 {[%clk 0:00:14.4]} 35... Rxg1+ {[%clk 0:00:37.1]} 36.
Kxg1 {[%clk 0:00:15.3]} 36... Qg5+ {[%clk 0:00:37]} 37. Rg2 {[%clk 0:00:15.8]}
37... Qe7 {[%clk 0:00:36.2]} 38. Nd5 {[%clk 0:00:14.1]} 38... Qxe6 {[%clk
0:00:36.3]} 39. Rg5 {[%clk 0:00:13.9]} 39... h6 {[%clk 0:00:35.4]} 40. Rg2
{[%clk 0:00:12.1]} 40... f4 {[%clk 0:00:34.1]} 41. Kf2 {[%clk 0:00:11.7]} 41...
h5 {[%clk 0:00:31.4]} 42. Rg5 {[%clk 0:00:11]} 42... Kh7 {[%clk 0:00:30.1]} 43.
Rxh5+ {[%clk 0:00:10]} 43... Kg6 {[%clk 0:00:30]} 44. Rh1 {[%clk 0:00:09.1]}
44... Kg7 {[%clk 0:00:26]} 45. Rg1+ {[%clk 0:00:08.6]} 45... Kf7 {[%clk
0:00:26.6]} 46. Rh1 {[%clk 0:00:08.6]} 46... Qf5 {[%clk 0:00:27]} 47. Rh6 {[%clk
0:00:07.1]} 47... Qc2+ {[%clk 0:00:26.1]} 48. Kf3 {[%clk 0:00:07.3]} 48... e4+
{[%clk 0:00:20.7]} 49. Kg4 {[%clk 0:00:05.2]} 49... f3 {[%clk 0:00:19.1]} 50.
Rg6 {[%clk 0:00:01.8]} 50... Kxg6 {[%clk 0:00:18.1]} 0-1

[Event "Early-Titled-Tuesday-Blitz-February-06-2024"]
[Site "Chess.com"]
[Date "2024.02.06"]
[Round "5"]
[White "Qingdom"]
[Black "AlexandraSamaganova"]
[Result "1-0"]
[WhiteElo "2138"]
[BlackElo "2364"]
[TimeControl "180+1"]
[EndTime "8:56:03 PST"]
[Termination "Qingdom won on time"]

1. d4 {[%clk 0:03:00.9]} 1... Nf6 {[%clk 0:02:56.8]} 2. Bg5 {[%clk 0:03:00.5]}
2... e6 {[%clk 0:02:54]} 3. e4 {[%clk 0:03:00]} 3... Be7 {[%clk 0:02:52.1]} 4.
e5 {[%clk 0:02:59.4]} 4... Nd5 {[%clk 0:02:50.2]} 5. Bd2 {[%clk 0:02:59.2]} 5...
c5 {[%clk 0:02:46]} 6. c4 {[%clk 0:02:57.2]} 6... Nc7 {[%clk 0:02:45.5]} 7. dxc5
{[%clk 0:02:50.7]} 7... Bxc5 {[%clk 0:02:43]} 8. Nf3 {[%clk 0:02:50.6]} 8... O-O
{[%clk 0:02:41.7]} 9. Bd3 {[%clk 0:02:50.3]} 9... Be7 {[%clk 0:02:40.1]} 10. O-O
{[%clk 0:02:50.1]} 10... Nc6 {[%clk 0:02:34]} 11. Nc3 {[%clk 0:02:49.2]} 11...
f5 {[%clk 0:02:27.5]} 12. exf6 {[%clk 0:02:45.8]} 12... Bxf6 {[%clk 0:02:27]}
13. Qe2 {[%clk 0:02:44.8]} 13... d5 {[%clk 0:02:07.9]} 14. cxd5 {[%clk
0:02:42.8]} 14... exd5 {[%clk 0:02:07.8]} 15. Rad1 {[%clk 0:02:36.1]} 15... Re8
{[%clk 0:02:04.5]} 16. Be3 {[%clk 0:02:30.5]} 16... d4 {[%clk 0:01:28.5]} 17.
Bb1 {[%clk 0:02:12.4]} 17... Bg4 {[%clk 0:00:57.5]} 18. h3 {[%clk 0:01:53]}
18... Bh5 {[%clk 0:00:55.1]} 19. g4 {[%clk 0:01:45.8]} 19... Bf7 {[%clk
0:00:48]} 20. Qc2 {[%clk 0:01:37.5]} 20... Bg6 {[%clk 0:00:47.5]} 21. Qb3+
{[%clk 0:01:37.8]} 21... Bf7 {[%clk 0:00:39.8]} 22. Qxb7 {[%clk 0:01:37]} 22...
Na5 {[%clk 0:00:28.3]} 23. Qb4 {[%clk 0:01:26.7]} 23... Na6 {[%clk 0:00:20.1]}
24. Qb5 {[%clk 0:01:07.3]} 24... Bc4 {[%clk 0:00:18.8]} 25. Qh5 {[%clk
0:01:07.2]} 25... d3 {[%clk 0:00:13.8]} 26. Nd2 {[%clk 0:00:44.1]} 26... Bf7
{[%clk 0:00:12.3]} 27. Qb5 {[%clk 0:00:43.2]} 27... Nb8 {[%clk 0:00:07]} 28.
Qxd3 {[%clk 0:00:40.1]} 28... Qxd3 {[%clk 0:00:06.7]} 29. Bxd3 {[%clk
0:00:40.4]} 29... Nbc6 {[%clk 0:00:06.6]} 30. Be4 {[%clk 0:00:34.8]} 30... Rac8
{[%clk 0:00:05.6]} 31. f4 {[%clk 0:00:30.9]} 31... Nb4 {[%clk 0:00:03.7]} 32.
Bxa7 {[%clk 0:00:25.7]} 32... Nac6 {[%clk 0:00:03.3]} 33. Bxc6 {[%clk
0:00:23.3]} 33... Nxc6 {[%clk 0:00:03]} 34. Bf2 {[%clk 0:00:24]} 34... Rb8
{[%clk 0:00:02.3]} 35. Nde4 {[%clk 0:00:22.3]} 35... Nb4 {[%clk 0:00:01.7]} 36.
Nxf6+ {[%clk 0:00:22.4]} 36... gxf6 {[%clk 0:00:02.6]} 37. Rfe1 {[%clk
0:00:20.4]} 37... Nxa2 {[%clk 0:00:02.8]} 38. Rxe8+ {[%clk 0:00:19.9]} 38...
Rxe8 {[%clk 0:00:01.3]} 39. Nxa2 {[%clk 0:00:20]} 39... Bxa2 {[%clk 0:00:02.2]}
40. Bd4 {[%clk 0:00:19.3]} 40... Kf7 {[%clk 0:00:01.7]} 41. Kf2 {[%clk 0:00:19]}
41... Bb3 {[%clk 0:00:02]} 42. Re1 {[%clk 0:00:18.9]} 42... Rd8 {[%clk
0:00:02.5]} 43. Bc3 {[%clk 0:00:17.9]} 43... Be6 {[%clk 0:00:02.1]} 44. f5
{[%clk 0:00:17.6]} 44... Bd5 {[%clk 0:00:02.4]} 45. Rd1 {[%clk 0:00:17.6]} 45...
Rd7 {[%clk 0:00:01.9]} 46. Rd4 {[%clk 0:00:17.1]} 46... Ke7 {[%clk 0:00:01.7]}
47. Rb4 {[%clk 0:00:16.1]} 47... Kd6 {[%clk 0:00:01.5]} 48. Rb6+ {[%clk
0:00:16.1]} 48... Kc5 {[%clk 0:00:01.7]} 49. Rxf6 {[%clk 0:00:15.7]} 49... Re7
{[%clk 0:00:02.1]} 50. h4 {[%clk 0:00:14.9]} 50... Bc4 {[%clk 0:00:02.2]} 51. g5
{[%clk 0:00:14]} 51... Re2+ {[%clk 0:00:01.9]} 52. Kf3 {[%clk 0:00:14.4]} 1-0

[Event "Early-Titled-Tuesday-Blitz-February-06-2024"]
[Site "Chess.com"]
[Date "2024.02.06"]
[Round "5"]
[White "Russian_berezka"]
[Black "mbchess97"]
[Result "0-1"]
[WhiteElo "2566"]
[BlackElo "2443"]
[TimeControl "180+1"]
[EndTime "8:56:04 PST"]
[Termination "mbchess97 won on time"]

1. d4 {[%clk 0:03:00.6]} 1... Nf6 {[%clk 0:02:59.1]} 2. c4 {[%clk 0:03:00.7]}
2... e6 {[%clk 0:02:59.4]} 3. Nc3 {[%clk 0:02:54.1]} 3... d5 {[%clk 0:02:59.4]}
4. Nf3 {[%clk 0:02:52.3]} 4... Bb4 {[%clk 0:02:59.3]} 5. Qa4+ {[%clk 0:02:49.2]}
5... Nc6 {[%clk 0:02:59]} 6. a3 {[%clk 0:02:49.2]} 6... Bxc3+ {[%clk 0:02:54.8]}
7. bxc3 {[%clk 0:02:49.2]} 7... Ne4 {[%clk 0:02:54.8]} 8. Bf4 {[%clk 0:02:46.6]}
8... Nxc3 {[%clk 0:02:48]} 9. Qc2 {[%clk 0:02:44.1]} 9... Ne4 {[%clk 0:02:47.1]}
10. e3 {[%clk 0:02:44.2]} 10... O-O {[%clk 0:02:45.2]} 11. Bd3 {[%clk
0:02:43.6]} 11... f5 {[%clk 0:02:39.3]} 12. h4 {[%clk 0:02:43.3]} 12... Ne7
{[%clk 0:02:20.7]} 13. h5 {[%clk 0:02:36.2]} 13... c6 {[%clk 0:02:18.9]} 14. Ne5
{[%clk 0:02:12]} 14... Qa5+ {[%clk 0:02:14.3]} 15. Kf1 {[%clk 0:02:08.2]} 15...
Nd2+ {[%clk 0:01:55.5]} 16. Ke2 {[%clk 0:02:00.5]} 16... Nxc4 {[%clk 0:01:51.1]}
17. Nxc4 {[%clk 0:01:53.3]} 17... dxc4 {[%clk 0:01:51]} 18. Bxc4 {[%clk
0:01:52.2]} 18... Nd5 {[%clk 0:01:50.6]} 19. Be5 {[%clk 0:01:42.2]} 19... Qc3
{[%clk 0:01:43.1]} 20. Rhc1 {[%clk 0:01:30.3]} 20... Qxc2+ {[%clk 0:01:39.2]}
21. Rxc2 {[%clk 0:01:31.2]} 21... Bd7 {[%clk 0:01:37.8]} 22. a4 {[%clk
0:01:23.9]} 22... b6 {[%clk 0:01:30.7]} 23. g3 {[%clk 0:01:17.6]} 23... a6
{[%clk 0:01:29.6]} 24. a5 {[%clk 0:01:12.2]} 24... b5 {[%clk 0:01:23.9]} 25. Bb3
{[%clk 0:01:11.7]} 25... Kf7 {[%clk 0:01:12.5]} 26. f3 {[%clk 0:01:07.1]} 26...
Rg8 {[%clk 0:01:00]} 27. Rf1 {[%clk 0:00:46.4]} 27... Ke7 {[%clk 0:00:55.5]} 28.
e4 {[%clk 0:00:37.8]} 28... fxe4 {[%clk 0:00:55.3]} 29. fxe4 {[%clk 0:00:38.1]}
29... Nf6 {[%clk 0:00:54.5]} 30. h6 {[%clk 0:00:38.1]} 30... Raf8 {[%clk
0:00:48.3]} 31. Kd3 {[%clk 0:00:31.5]} 31... gxh6 {[%clk 0:00:44.7]} 32. Rcf2
{[%clk 0:00:30.8]} 32... Ne8 {[%clk 0:00:36]} 33. Bf4 {[%clk 0:00:24.8]} 33...
Nf6 {[%clk 0:00:28.4]} 34. Be5 {[%clk 0:00:16.3]} 34... Ne8 {[%clk 0:00:27.9]}
35. Ke3 {[%clk 0:00:13.2]} 35... Rxf2 {[%clk 0:00:27]} 36. Rxf2 {[%clk
0:00:13.8]} 36... Rf8 {[%clk 0:00:24.1]} 37. Rh2 {[%clk 0:00:13.2]} 37... Nf6
{[%clk 0:00:21.5]} 38. Rh4 {[%clk 0:00:12.1]} 38... Rg8 {[%clk 0:00:20.3]} 39.
Bd1 {[%clk 0:00:09.9]} 39... Rg6 {[%clk 0:00:19.3]} 40. Bf4 {[%clk 0:00:06.5]}
40... h5 {[%clk 0:00:17.3]} 41. Bxh5 {[%clk 0:00:03.8]} 41... Nxh5 {[%clk
0:00:16.7]} 42. Rxh5 {[%clk 0:00:04]} 42... Rg7 {[%clk 0:00:16.1]} 43. Be5
{[%clk 0:00:02.4]} 43... Rf7 {[%clk 0:00:15.6]} 44. Bf4 {[%clk 0:00:01]} 44...
Be8 {[%clk 0:00:14.8]} 0-1

[Event "Early-Titled-Tuesday-Blitz-February-06-2024"]
[Site "Chess.com"]
[Date "2024.02.06"]
[Round "5"]
[White "carokannlover213"]
[Black "RobertJFischer71"]
[Result "0-1"]
[WhiteElo "2760"]
[BlackElo "2571"]
[TimeControl "180+1"]
[EndTime "8:56:05 PST"]
[Termination "RobertJFischer71 won on time"]

1. e4 {[%clk 0:03:00.9]} 1... e5 {[%clk 0:02:59.7]} 2. Nf3 {[%clk 0:03:00.6]}
2... Nc6 {[%clk 0:03:00.4]} 3. Bc4 {[%clk 0:03:01.1]} 3... Bc5 {[%clk
0:03:00.2]} 4. d3 {[%clk 0:03:01.7]} 4... Nf6 {[%clk 0:03:00]} 5. Nc3 {[%clk
0:03:02.3]} 5... d6 {[%clk 0:03:00.5]} 6. Bg5 {[%clk 0:03:01.4]} 6... h6 {[%clk
0:02:59.6]} 7. Bxf6 {[%clk 0:03:02.1]} 7... Qxf6 {[%clk 0:03:00.5]} 8. Nd5
{[%clk 0:03:03]} 8... Qd8 {[%clk 0:03:01]} 9. c3 {[%clk 0:03:03.9]} 9... Bb6
{[%clk 0:02:56.5]} 10. d4 {[%clk 0:02:56.9]} 10... O-O {[%clk 0:02:50.8]} 11.
dxe5 {[%clk 0:02:52.4]} 11... Nxe5 {[%clk 0:02:50.8]} 12. Nxb6 {[%clk
0:02:34.9]} 12... axb6 {[%clk 0:02:48.5]} 13. Be2 {[%clk 0:02:35.3]} 13... Nxf3+
{[%clk 0:02:42.8]} 14. Bxf3 {[%clk 0:02:35.1]} 14... Re8 {[%clk 0:02:41.4]} 15.
O-O {[%clk 0:02:34.2]} 15... Qf6 {[%clk 0:02:37.1]} 16. Qd2 {[%clk 0:02:29.3]}
16... Ra5 {[%clk 0:02:31.2]} 17. Qd4 {[%clk 0:02:17.9]} 17... Qf4 {[%clk
0:02:15.1]} 18. Rfe1 {[%clk 0:01:45.3]} 18... Rg5 {[%clk 0:02:07.9]} 19. Qe3
{[%clk 0:01:42.9]} 19... Qxe3 {[%clk 0:02:00]} 20. Rxe3 {[%clk 0:01:42.2]} 20...
Rge5 {[%clk 0:02:00.9]} 21. Rae1 {[%clk 0:01:31.1]} 21... Bd7 {[%clk 0:02:00.6]}
22. b3 {[%clk 0:01:23.2]} 22... Bc6 {[%clk 0:01:58.6]} 23. g3 {[%clk 0:01:13.8]}
23... f5 {[%clk 0:01:52.3]} 24. Bh5 {[%clk 0:00:42.4]} 24... Rf8 {[%clk
0:01:40]} 25. f3 {[%clk 0:00:06.6]} 25... fxe4 {[%clk 0:01:37.1]} 26. Bg4 {[%clk
0:00:03]} 26... exf3 {[%clk 0:01:36.9]} 27. Kf2 {[%clk 0:00:02.9]} 27... Rfe8
{[%clk 0:01:31.2]} 28. Rxe5 {[%clk 0:00:01.7]} 28... Rxe5 {[%clk 0:01:32.1]} 29.
Rxe5 {[%clk 0:00:01.8]} 29... dxe5 {[%clk 0:01:33]} 30. Bxf3 {[%clk 0:00:01.7]}
30... Bxf3 {[%clk 0:01:32.4]} 31. Kxf3 {[%clk 0:00:02.6]} 31... Kf7 {[%clk
0:01:33.1]} 32. Ke4 {[%clk 0:00:03.5]} 32... Ke6 {[%clk 0:01:33.7]} 33. h3
{[%clk 0:00:02.9]} 33... c6 {[%clk 0:01:32.6]} 34. a4 {[%clk 0:00:03.3]} 34...
g6 {[%clk 0:01:30.5]} 35. b4 {[%clk 0:00:03.3]} 35... b5 {[%clk 0:01:27.5]} 36.
a5 {[%clk 0:00:02.5]} 36... Kd6 {[%clk 0:01:27.3]} 37. h4 {[%clk 0:00:02]} 37...
h5 {[%clk 0:01:27.2]} 38. Ke3 {[%clk 0:00:01.5]} 38... Kd5 {[%clk 0:01:28.1]}
39. Kd3 {[%clk 0:00:01.9]} 39... Kd6 {[%clk 0:01:13.8]} 40. Ke4 {[%clk
0:00:01.5]} 40... Ke6 {[%clk 0:01:14.5]} 41. Ke3 {[%clk 0:00:02.1]} 41... Kf5
{[%clk 0:01:15.2]} 42. Kf3 {[%clk 0:00:02.7]} 42... e4+ {[%clk 0:00:59.1]} 43.
Ke3 {[%clk 0:00:03.1]} 43... Ke5 {[%clk 0:01:00]} 44. Ke2 {[%clk 0:00:02.2]}
44... Ke6 {[%clk 0:00:57.4]} 45. Kd2 {[%clk 0:00:01.9]} 45... Kd5 {[%clk
0:00:46.5]} 46. Ke3 {[%clk 0:00:02.3]} 46... Kc4 {[%clk 0:00:47.2]} 47. Kxe4
{[%clk 0:00:02.8]} 47... Kxc3 {[%clk 0:00:47.9]} 48. Ke5 {[%clk 0:00:02.1]}
48... Kxb4 {[%clk 0:00:46.8]} 49. Kf6 {[%clk 0:00:02.8]} 49... c5 {[%clk
0:00:46.8]} 50. Kxg6 {[%clk 0:00:03.3]} 50... c4 {[%clk 0:00:47.5]} 51. g4
{[%clk 0:00:03.9]} 51... c3 {[%clk 0:00:41.3]} 52. gxh5 {[%clk 0:00:03.7]} 52...
c2 {[%clk 0:00:42]} 53. h6 {[%clk 0:00:04.6]} 53... c1=Q {[%clk 0:00:42.2]} 54.
h7 {[%clk 0:00:05.5]} 54... Qc3 {[%clk 0:00:42]} 55. h5 {[%clk 0:00:06.4]} 55...
Qh8 {[%clk 0:00:42.1]} 56. h6 {[%clk 0:00:06.5]} 56... Kxa5 {[%clk 0:00:42.5]}
57. Kg5 {[%clk 0:00:07.4]} 57... Qxh7 {[%clk 0:00:42.4]} 58. Kh5 {[%clk
0:00:08.3]} 58... b4 {[%clk 0:00:41.5]} 59. Kg5 {[%clk 0:00:09.2]} 59... b3
{[%clk 0:00:41.9]} 60. Kg4 {[%clk 0:00:10.1]} 60... Qxh6 {[%clk 0:00:41.2]} 0-1